bitfinex/quotes_ETHUSD_20250210
["timestamp","ask_amount","ask_price","bid_price","bid_amount"]
[1739164470998,0.0163007,2641.9,2641.7,0.7775]
[1739164471204,0.0163007,2641.9,2641.8,0.0533814]
[1739164471405,0.0163007,2641.9,2641.7,0.7775]
[1739164471572,0.0163007,2641.9,2641.8,0.0533814]
[1739164471772,0.0163007,2641.9,2641.7,0.7775]
[1739164471967,0.0163007,2641.9,2641.8,0.0533814]
[1739164472168,0.0163007,2641.9,2641.6,2.01899811]
[1739164472507,0.0163007,2641.9,2641.7,0.0533814]
[1739164473406,3.8015407,2641.9,2641.7,0.0533814]
[1739164474804,0.0163007,2641.9,2641.7,0.0533814]
[1739164475005,0.0163007,2641.9,2641.6,7.82356622]
[1739164475308,0.0163007,2641.9,2641.8,3.78529]
[1739164475509,0.0163007,2641.9,2641.8,4.56279]
[1739164475887,0.0163007,2641.9,2641.8,4.61558448]
[1739164477708,0.0163007,2641.9,2641.8,2.84929259]
[1739164478122,0.0163007,2641.9,2641.8,2.07179259]
[1739164478287,3.8014507,2641.9,2641.8,2.07179259]
[1739164478488,4.5889507,2641.9,2641.8,0.05279448]
[1739164478934,3.78556,2641.7,2641.4,2.01899811]
[1739164479285,3.78558,2641.6,2641.5,0.04968592]
[1739164480023,4.57308,2641.6,2641.5,5.92e-06]
[1739164480183,3.78673,2640.8,2640.7,2.01899811]
[1739164480384,3.78673,2640.8,2640.7,0.04791164]
[1739164480591,3.78673,2640.8,2640.5,2.01899811]
[1739164480804,3.78673,2640.8,2640.6,0.04791164]
[1739164481101,3.78687,2640.7,2640.6,0.04791164]
[1739164481298,4.57437,2640.7,2640.6,0.04791164]
[1739164481491,3.78752,2640.3,2640.1,2.01899811]
[1739164481688,3.78759,2640.2,2640.1,2.01899811]
[1739164482528,3.78741,2640.4,2640.1,2.01899811]
[1739164482825,3.78747,2640.3,2640.1,2.01899811]
[1739164483127,3.78736,2640.4,2640.1,2.01899811]
[1739164483515,3.78736,2640.4,2640.3,2.01899811]
[1739164484698,3.78736,2640.4,2640.1,2.01899811]
[1739164484902,3.7872,2640.5,2640.1,2.01899811]
[1739164485219,3.78745,2640.3,2640.1,2.01899811]
[1739164486551,4.57509,2640.2,2640.1,2.01899811]
[1739164487638,4.57509,2640.2,2640.1,2.06873989]
[1739164489321,4.57509,2640.2,2640.1,0.04974178]
[1739164489748,3.78789,2640.0,2639.8,2.01899811]
[1739164490059,3.78789,2640.0,2639.9,0.04974178]
[1739164492925,3.78789,2640.0,2639.8,2.01899811]
[1739164493137,3.78802,2639.9,2639.8,2.01899811]
[1739164495339,3.78802,2639.9,2639.6,2.01899811]
[1739164495536,3.78832,2639.7,2639.6,2.01899811]
[1739164496192,3.78865,2639.5,2639.4,2.01899811]
[1739164496400,3.78888,2639.3,2639.2,2.01899811]
[1739164499478,3.78865,2639.5,2638.8,2.01899811]
[1739164499479,3.78927,2639.1,2638.8,2.01899811]
[1739164499677,3.78945,2638.9,2638.8,2.01899811]
[1739164499900,3.78931,2639.0,2638.8,2.01899811]
[1739164500285,3.78931,2639.0,2638.9,0.05146558]
[1739164500961,7.56711,2639.0,2638.9,0.05146558]
[1739164501315,3.78919,2639.1,2638.8,2.01899811]
[1739164501655,3.78919,2639.1,2639.0,2.01899811]
[1739164501656,6.78919,2639.1,2639.0,2.01899811]
[1739164501818,3.78931,2639.0,2638.9,0.05154339]
[1739164502000,3.78931,2639.0,2638.6,2.01899811]
[1739164502001,3.7896,2638.8,2638.6,2.01899811]
[1739164502378,3.78918,2639.1,2638.7,0.05158663]
[1739164502632,3.78918,2639.1,2638.9,2.01899811]
[1739164503001,7.56676,2639.3,2639.0,0.05158663]
[1739164503224,3.0,2639.3,2639.1,2.01899811]
[1739164503434,3.78888,2639.3,2639.1,2.01899811]
[1739164503619,10.57787,2639.3,2639.2,0.05158663]
[1739164503937,0.7778,2639.6,2639.1,2.01899811]
[1739164504112,0.7778,2639.6,2638.8,0.7654]
[1739164504113,3.78824,2639.8,2639.5,2.01899811]
[1739164504311,3.78835,2639.7,2639.5,2.01899811]
[1739164504542,7.57676,2639.7,2639.5,2.01899811]
[1739164504724,3.78835,2639.7,2639.6,0.05147422]
[1739164506022,0.7778,2639.9,2639.6,0.05147422]
[1739164506233,0.7778,2640.1,2639.7,2.01899811]
[1739164506533,3.78816,2639.8,2639.7,2.01899811]
[1739164506840,3.78858,2639.6,2639.3,2.01899811]
[1739164507036,0.7951,2639.9,2639.4,0.05105928]
[1739164507198,3.78859,2639.5,2639.4,0.05105928]
[1739164508534,3.78845,2639.6,2639.4,0.05105928]
[1739164508937,6.1151,2640.2,2639.5,2.01899811]
[1739164509111,3.78806,2639.9,2639.7,2.01899811]
[1739164509509,3.78787,2640.0,2639.7,2.01899811]
[1739164509703,3.78787,2640.0,2639.8,0.05127538]
[1739164510206,3.78787,2640.0,2639.7,2.01899811]
[1739164510542,3.78775,2640.1,2639.7,2.01899811]
[1739164510937,4.58272,2640.2,2640.0,2.01899811]
[1739164511140,3.78762,2640.2,2640.0,2.01899811]
[1739164511548,4.58237,2640.5,2640.0,2.01899811]
[1739164511717,3.78731,2640.4,2640.1,2.01899811]
[1739164512049,7.57473,2640.4,2640.1,2.01899811]
[1739164512243,3.78731,2640.4,2640.1,2.01899811]
[1739164512770,3.78745,2640.3,2639.9,2.80219811]
[1739164512912,3.78776,2640.1,2639.9,2.01899811]
[1739164513439,3.78748,2640.3,2639.9,2.01899811]
[1739164514006,0.7951,2640.5,2639.9,2.01899811]
[1739164514237,3.78798,2640.0,2639.7,2.80219811]
[1739164514406,3.78798,2640.0,2639.7,2.01899811]
[1739164515068,3.78773,2640.1,2639.7,2.01899811]
[1739164515359,3.78773,2640.1,2639.8,0.05041097]
[1739164515608,3.78792,2640.0,2639.8,0.05041097]
[1739164515762,3.78792,2640.0,2639.7,2.01899811]
[1739164515970,3.78792,2640.0,2639.9,0.05041097]
[1739164516118,3.78792,2640.0,2639.7,2.01899811]
[1739164516315,3.78792,2640.0,2639.9,0.05041097]
[1739164516657,0.7951,2640.5,2639.9,0.05041097]
[1739164516815,3.78739,2640.4,2640.0,2.01899811]
[1739164517129,3.78747,2640.3,2640.0,2.80219811]
[1739164517520,3.78747,2640.3,2640.1,0.05041097]
[1739164517964,3.78759,2640.2,2640.1,0.05041097]
[1739164518165,3.78739,2640.4,2640.1,0.05041097]
[1739164518367,0.7951,2640.5,2640.1,0.05041097]
[1739164518368,3.78716,2640.5,2640.3,2.01899811]
[1739164518518,3.7873,2640.4,2640.3,2.01899811]
[1739164518947,3.78716,2640.5,2640.3,2.06940908]
[1739164519464,7.5744,2640.5,2640.3,2.06940908]
[1739164519641,3.78716,2640.5,2640.3,2.06940908]
[1739164519970,3.7873,2640.4,2640.3,2.06940908]
[1739164521239,3.78716,2640.5,2640.3,2.06940908]
[1739164521445,7.5744,2640.5,2640.3,2.06940908]
[1739164521657,3.78716,2640.5,2640.3,2.06940908]
[1739164521854,3.7873,2640.4,2640.3,2.06940908]
[1739164522773,3.78701,2640.7,2640.3,2.82740908]
[1739164522933,3.78701,2640.6,2640.3,2.82740908]
[1739164523735,4.58187,2640.8,2640.3,2.82740908]
[1739164524037,4.58187,2640.8,2640.3,2.77699811]
[1739164524233,3.78701,2640.6,2640.3,2.77699811]
[1739164524439,3.78719,2640.5,2640.4,0.04998758]
[1739164524650,3.78701,2640.6,2640.4,0.04998758]
[1739164525861,3.78688,2640.7,2640.4,0.04998758]
[1739164526062,6.78652,2641.0,2640.6,2.01899811]
[1739164526281,6.78652,2641.0,2640.9,2.01899811]
[1739164526450,3.78659,2640.9,2640.7,0.04965925]
[1739164526792,3.78673,2640.8,2640.7,0.04965925]
[1739164527184,3.78673,2640.8,2640.0,2.01899811]
[1739164527185,3.78637,2641.1,2640.6,2.01899811]
[1739164527391,3.78625,2641.2,2640.9,2.01899811]
[1739164527591,3.78631,2641.1,2640.9,2.01899811]
[1739164527902,3.78631,2641.1,2641.0,0.04969381]
[1739164530618,3.78616,2641.2,2641.0,0.04969381]
[1739164530791,3.7863,2641.1,2641.0,0.04969381]
[1739164531092,3.78615,2641.2,2641.0,0.04969381]
[1739164531247,3.7863,2641.1,2641.0,0.04969381]
[1739164531453,3.78615,2641.2,2641.0,0.04969381]
[1739164532267,3.7863,2641.1,2641.0,0.04969381]
[1739164532463,3.78678,2640.8,2640.6,2.01899811]
[1739164532893,3.78678,2640.8,2640.7,0.04969381]
[1739164533109,3.7862,2641.2,2640.7,0.04969381]
[1739164533296,0.7797,2641.4,2640.9,2.83179811]
[1739164533587,8.35106,2641.6,2641.2,2.01899811]
[1739164533889,3.78566,2641.6,2641.2,2.01899811]
[1739164534056,3.78573,2641.5,2641.3,0.04939147]
[1739164534255,3.78566,2641.6,2641.2,2.01899811]
[1739164534465,7.57136,2641.6,2641.3,0.04939147]
[1739164534665,7.57136,2641.6,2641.2,2.01899811]
[1739164534894,3.78566,2641.6,2641.3,0.04939147]
[1739164535087,3.78559,2641.6,2641.3,2.06417304]
[1739164535290,3.78559,2641.6,2641.3,2.01478157]
[1739164535803,3.78559,2641.6,2641.4,0.04897004]
[1739164536012,4.56505,2641.8,2641.4,0.04897004]
[1739164536802,0.0163007,2641.9,2641.5,2.01478157]
[1739164537021,3.78531,2641.8,2641.5,2.01449309]
[1739164537423,4.53854,2641.7,2641.6,0.04897004]
[1739164537723,3.78623,2641.2,2640.9,2.01449309]
[1739164538000,3.78612,2641.3,2640.9,2.01449309]
[1739164538166,3.78612,2641.3,2641.1,2.01449309]
[1739164538362,3.78546,2641.7,2641.1,5.80070309]
[1739164538586,3.78572,2641.5,2641.2,2.78369309]
[1739164538787,7.57101,2641.7,2641.2,2.78369309]
[1739164538987,3.78546,2641.7,2641.4,2.01449309]
[1739164539803,3.8015207,2641.9,2641.4,2.01449309]
[1739164540007,3.8015207,2641.9,2641.6,2.01449309]
[1739164540701,0.0163007,2641.9,2641.6,2.01449309]
[1739164540878,0.0163007,2641.9,2641.6,2.78369309]
[1739164541300,3.8014507,2641.9,2641.6,2.78369309]
[1739164541501,0.0163007,2641.9,2641.6,2.78369309]
[1739164542307,0.0163007,2641.9,2641.6,6.56925309]
[1739164542512,0.0163007,2641.9,2641.6,2.78369309]
[1739164543020,0.0163007,2641.9,2641.6,6.56922309]
[1739164543909,0.0163007,2641.9,2641.8,5.79978309]
[1739164545198,0.0163007,2641.9,2641.8,2.01449309]
[1739164545588,0.0163007,2641.9,2641.8,2.06195198]
[1739164548088,0.0163007,2641.9,2641.8,5.84724198]
[1739164549083,0.0163007,2641.9,2641.8,2.06195198]
[1739164549790,0.0163007,2641.9,2641.8,5.84724198]
[1739164552010,0.0163007,2641.9,2641.8,2.06195198]
[1739164552209,0.0163007,2641.9,2641.8,0.04745889]
[1739164552622,0.0163007,2641.9,2641.6,2.78369309]
[1739164552913,0.0163007,2641.9,2641.8,3.78529]
[1739164553283,0.0163007,2641.9,2641.8,6.56928309]
[1739164553613,0.0163007,2641.9,2641.8,6.61599104]
[1739164554013,0.0163007,2641.9,2641.8,7.16599104]
[1739164555283,0.8133,2643.2,2642.2,0.7695]
[1739164555485,0.8133,2643.2,2642.5,5.79877309]
[1739164555801,0.18946757,2643.6,2642.1,2.01449309]
[1739164555802,3.78415,2642.6,2642.1,2.01449309]
[1739164556005,3.78472,2642.2,2642.1,2.01449309]
[1739164556384,0.8133,2642.3,2641.8,2.78399309]
[1739164556584,3.78472,2642.2,2641.6,2.01449309]
[1739164556892,3.78544,2641.7,2641.6,2.01449309]
[1739164558930,3.78587,2641.4,2641.3,2.01449309]
[1739164559529,3.7864,2641.1,2641.0,2.01449309]
[1739164560163,3.78644,2641.0,2640.9,0.18392252]
[1739164560436,3.78701,2640.6,2640.5,2.01449309]
[1739164561100,3.7873,2640.4,2640.3,2.01449309]
[1739164561330,3.78759,2640.2,2639.9,2.01449309]
[1739164561487,3.78759,2640.2,2640.1,2.01449309]
[1739164561823,3.78743,2640.4,2640.0,4.02898618]
[1739164562023,3.78743,2640.4,2640.3,2.01449309]
[1739164563027,0.8133,2640.3,2640.0,2.01449309]
[1739164563329,3.78773,2640.1,2640.0,2.01449309]
[1739164564924,7.57559,2640.1,2639.8,2.01449309]
[1739164565236,3.78815,2639.9,2639.8,2.01449309]
[1739164565443,3.78845,2639.6,2639.5,2.01449309]
[1739164566408,3.78829,2639.8,2639.5,2.01449309]
[1739164566805,3.78845,2639.6,2639.5,2.01449309]
[1739164567206,3.78888,2639.3,2639.2,2.01449309]
[1739164567838,3.78874,2639.4,2639.2,2.01449309]
[1739164568346,3.78872,2639.5,2639.2,2.01449309]
[1739164568552,7.57745,2639.5,2639.2,2.01449309]
[1739164568903,3.78872,2639.5,2639.2,2.01449309]
[1739164569540,3.78888,2639.3,2639.2,2.01449309]
[1739164571349,3.78931,2639.0,2638.9,2.01449309]
[1739164571648,3.78988,2638.6,2638.5,2.01449309]
[1739164571811,3.78988,2638.6,2638.2,2.01449309]
[1739164572527,3.79026,2638.4,2638.2,2.01449309]
[1739164572727,3.79031,2638.3,2638.2,2.01449309]
[1739164572937,3.79026,2638.4,2638.2,2.01449309]
[1739164573349,3.79031,2638.3,2638.2,2.01449309]
[1739164574210,3.79026,2638.4,2637.7,0.7541]
[1739164574211,3.79062,2638.1,2637.9,2.01449309]
[1739164574448,3.79075,2638.0,2637.9,2.01449309]
[1739164575552,4.61252,2638.1,2637.9,2.01449309]
[1739164575856,0.8219,2638.5,2637.9,2.01449309]
[1739164576046,3.79049,2638.2,2638.0,0.04781882]
[1739164576250,3.79017,2638.4,2638.0,0.04781882]
[1739164576468,6.79017,2638.4,2638.3,2.01449309]
[1739164576819,3.79046,2638.2,2638.1,2.01449309]
[1739164577354,10.58048,2638.4,2637.1,0.18418755]
[1739164577355,3.7912,2637.7,2637.6,2.01449309]
[1739164577851,3.79089,2637.9,2637.6,2.01449309]
[1739164578058,3.79118,2637.7,2637.6,2.01449309]
[1739164578377,3.79089,2637.9,2637.6,2.01449309]
[1739164578523,3.79115,2637.8,2637.6,2.01449309]
[1739164579353,3.79089,2637.9,2637.6,2.01449309]
[1739164580667,3.79118,2637.7,2637.6,2.01449309]
[1739164581530,3.79089,2637.9,2637.6,2.01449309]
[1739164582855,3.79064,2638.1,2637.6,2.01449309]
[1739164583061,3.79075,2638.0,2637.9,2.01449309]
[1739164583559,3.79124,2637.7,2637.6,2.01449309]
[1739164583723,4.61314,2637.7,2637.3,2.01449309]
[1739164583924,3.7916,2637.5,2637.3,2.01449309]
[1739164584126,3.79141,2637.6,2637.3,2.01449309]
[1739164584433,3.79149,2637.5,2637.3,2.01449309]
[1739164584642,4.61316,2637.7,2637.3,2.01449309]
[1739164584985,3.79111,2637.8,2637.5,2.01449309]
[1739164585459,7.58226,2637.8,2637.5,2.01449309]
[1739164585670,3.79121,2637.7,2637.5,2.01449309]
[1739164586980,3.79111,2637.8,2637.5,2.01449309]
[1739164588069,0.8219,2637.9,2637.5,2.01449309]
[1739164588269,4.61355,2637.4,2637.2,2.01449309]
[1739164588572,4.61355,2637.4,2637.3,0.049316]
[1739164588936,4.61355,2637.4,2637.2,2.01449309]
[1739164589244,3.79165,2637.4,2637.3,0.049316]
[1739164589562,3.79165,2637.4,2637.2,2.01449309]
[1739164589771,3.79165,2637.4,2637.3,0.04945446]
[1739164590086,6.79116,2637.8,2637.3,0.80355446]
[1739164590234,0.8219,2637.9,2637.5,2.01449309]
[1739164590435,3.79106,2637.8,2637.5,2.01449309]
[1739164590696,3.79118,2637.7,2637.6,0.04934196]
[1739164591575,3.79106,2637.8,2637.6,0.04934196]
[1739164591882,3.7907,2638.1,2637.7,2.01449309]
[1739164592095,3.7907,2638.1,2637.5,3.79136]
[1739164592096,3.7907,2638.1,2638.0,2.01449309]
[1739164592502,3.79046,2638.2,2638.0,2.01449309]
[1739164592774,3.79054,2638.2,2638.0,2.0636447]
[1739164593346,7.58051,2638.4,2638.0,2.0636447]
[1739164593753,3.79024,2638.4,2638.0,2.0636447]
[1739164594046,3.79056,2638.2,2638.0,2.0636447]
[1739164594251,0.8219,2638.1,2638.0,0.04915161]
[1739164594578,3.79084,2638.0,2637.7,2.01449309]
[1739164595344,4.6125,2638.1,2637.7,2.01449309]
[1739164595695,3.7906,2638.1,2638.0,2.01449309]
[1739164595878,3.79076,2638.0,2637.7,2.01449309]
[1739164597295,3.79053,2638.2,2637.7,2.01449309]
[1739164597455,3.79035,2638.3,2638.0,2.01449309]
[1739164597841,3.79031,2638.3,2637.7,2.01449309]
[1739164598045,3.79068,2638.1,2637.7,2.01449309]
[1739164598579,3.79076,2638.0,2637.7,2.01449309]
[1739164598756,3.79068,2638.1,2637.7,2.01449309]
[1739164598950,3.79038,2638.3,2637.7,2.01449309]
[1739164599265,7.58083,2638.3,2638.0,2.01449309]
[1739164599651,3.79038,2638.3,2638.0,2.01449309]
[1739164601389,3.7906,2638.1,2638.0,2.01449309]
[1739164601679,3.7906,2638.1,2637.7,2.01449309]
[1739164602202,3.79038,2638.3,2637.7,2.01449309]
[1739164602409,3.79025,2638.4,2638.0,2.01449309]
[1739164603204,3.79012,2638.5,2638.3,2.01449309]
[1739164603394,3.7898,2638.7,2638.3,2.01449309]
[1739164603596,3.7898,2638.7,2638.6,2.01449309]
[1739164605284,3.7896,2638.8,2638.6,2.0630651]
[1739164605606,4.61094,2638.7,2638.6,0.04857201]
[1739164606107,3.79012,2638.5,2638.3,2.01449309]
[1739164606303,3.79017,2638.4,2638.3,2.01449309]
[1739164606505,3.7905,2638.2,2638.0,2.01449309]
[1739164606800,3.79067,2638.1,2637.7,2.01449309]
[1739164607006,3.79067,2638.1,2638.0,2.01449309]
[1739164608007,3.79075,2638.0,2637.7,2.01449309]
[1739164608788,3.79103,2637.9,2637.7,2.01449309]
[1739164608990,3.79103,2637.8,2637.7,2.01449309]
[1739164611116,3.791,2637.9,2637.7,2.01449309]
[1739164611915,3.79103,2637.8,2637.7,2.01449309]
[1739164612086,3.7826926,2637.8,2637.7,2.01449309]
[1739164613235,4.5909926,2637.8,2637.7,2.01449309]
[1739164614626,0.8083,2638.3,2637.7,2.76689309]
[1739164614812,3.78945,2638.9,2638.3,0.7524]
[1739164615121,1.29281659,2639.2,2638.8,0.7524]
[1739164615122,0.48451659,2639.2,2638.8,0.7524]
[1739164615356,0.48451659,2639.2,2639.1,7.81815618]
[1739164615830,4.80581732,2640.2,2639.4,3.78862]
[1739164616003,4.80581732,2640.2,2639.8,2.01449309]
[1739164616334,3.78802,2639.9,2639.8,2.01449309]
[1739164616488,3.78802,2639.9,2639.5,2.01449309]
[1739164616689,3.78821,2639.8,2639.5,2.01449309]
[1739164616890,3.78802,2639.9,2639.6,0.04553556]
[1739164619926,3.78774,2640.1,2639.8,2.01449309]
[1739164620432,4.59581,2640.3,2639.5,2.01449309]
[1739164620433,3.78802,2639.9,2639.5,2.01449309]
[1739164620629,3.78831,2639.7,2639.5,2.01449309]
[1739164620997,3.78845,2639.6,2639.5,2.01449309]
[1739164621814,3.78831,2639.7,2639.5,2.01449309]
[1739164622029,3.78845,2639.6,2639.5,2.01449309]
[1739164622326,3.78831,2639.7,2639.5,2.01449309]
[1739164623550,4.59635,2639.9,2639.5,2.01449309]
[1739164623699,3.78805,2639.9,2639.5,2.01449309]
[1739164624735,3.78821,2639.8,2639.5,2.01449309]
[1739164624933,3.78845,2639.6,2639.5,2.01449309]
[1739164625144,3.78885,2639.4,2639.2,2.01449309]
[1739164626059,3.78921,2639.1,2638.9,2.01449309]
[1739164626203,3.78931,2639.0,2638.9,2.01449309]
[1739164626601,3.78972,2638.8,2638.6,2.01449309]
[1739164627105,3.78933,2639.0,2638.7,0.04274878]
[1739164627354,3.78959,2638.9,2638.7,0.04274878]
[1739164628533,3.78921,2639.1,2638.7,0.04274878]
[1739164628841,3.78921,2639.1,2639.0,2.01449309]
[1739164629257,3.78921,2639.1,2639.0,2.05750104]
[1739164629750,3.78921,2639.1,2639.0,0.04300795]
[1739164629952,7.54071,2639.1,2638.7,2.01449309]
[1739164630252,3.7896,2638.8,2638.7,2.01449309]
[1739164630406,3.7901,2638.5,2638.4,2.01449309]
[1739164630904,3.78981,2638.7,2638.4,2.01449309]
[1739164631104,3.78951,2638.9,2638.4,4.02898618]
[1739164631328,3.78951,2638.9,2638.8,2.01449309]
[1739164631654,6.78951,2638.9,2638.8,2.01449309]
[1739164632163,3.78931,2639.0,2638.8,2.01449309]
[1739164632333,3.78927,2639.1,2638.8,2.01449309]
[1739164632671,3.78847,2639.6,2638.9,3.78933]
[1739164632809,3.78847,2639.6,2639.5,2.01449309]
[1739164633013,7.57703,2639.6,2639.2,2.01449309]
[1739164633353,3.78874,2639.4,2639.2,2.01449309]
[1739164633523,0.7515,2639.8,2639.2,2.01449309]
[1739164633524,3.0,2639.7,2639.2,2.01449309]
[1739164633718,3.78804,2639.9,2639.6,2.7317774]
[1739164634027,3.78825,2639.8,2639.6,2.7317774]
[1739164634864,3.78791,2640.0,2639.6,2.7317774]
[1739164634865,3.78814,2639.9,2639.6,2.7317774]
[1739164635070,3.78791,2640.0,2639.6,2.7317774]
[1739164635356,3.78764,2640.2,2639.9,2.7317774]
[1739164635513,3.0,2640.1,2639.9,2.7317774]
[1739164635912,3.0,2640.1,2640.0,0.04203206]
[1739164636115,3.78738,2640.4,2640.0,0.04203206]
[1739164636344,3.78745,2640.3,2640.0,0.04203206]
[1739164636616,3.78708,2640.6,2640.0,0.04203206]
[1739164636617,3.78708,2640.6,2640.2,2.7317774]
[1739164636832,3.75610764,2640.7,2640.2,2.7317774]
[1739164637113,3.75610764,2640.7,2640.0,0.04203206]
[1739164637114,3.78701,2640.6,2640.5,2.7317774]
[1739164637331,3.78735,2640.4,2640.2,2.7317774]
[1739164637810,3.78735,2640.4,2640.3,0.04185077]
[1739164638317,3.78735,2640.4,2640.2,2.7317774]
[1739164638760,3.78735,2640.4,2640.3,0.04156595]
[1739164638964,3.78735,2640.4,2640.2,2.7317774]
[1739164639125,3.78735,2640.4,2640.3,0.04156595]
[1739164639331,3.78735,2640.4,2640.2,2.7317774]
[1739164639332,3.78744,2640.3,2640.2,2.7317774]
[1739164639560,3.78744,2640.3,2640.2,2.77334335]
[1739164639841,3.78735,2640.4,2640.2,2.77334335]
[1739164640164,7.57478,2640.4,2640.2,2.77334335]
[1739164640336,3.78735,2640.4,2640.2,2.77334335]
[1739164640759,3.78726,2640.5,2640.2,2.77334335]
[1739164640961,3.78707,2640.6,2640.2,2.7317774]
[1739164641163,3.78728,2640.5,2640.2,2.7317774]
[1739164641421,3.7873,2640.4,2640.3,0.04156595]
[1739164641647,4.5388,2640.4,2640.3,0.04156595]
[1739164641975,3.78787,2640.0,2639.9,2.7317774]
[1739164642459,3.78773,2640.2,2639.9,2.7317774]
[1739164642683,3.78735,2640.4,2639.9,2.7317774]
[1739164642969,3.78716,2640.5,2640.3,2.7317774]
[1739164643161,3.78716,2640.5,2640.4,0.04181625]
[1739164643337,3.78716,2640.5,2640.3,2.7317774]
[1739164643534,3.78716,2640.5,2640.4,0.04181625]
[1739164643738,3.78716,2640.5,2640.3,2.7317774]
[1739164644057,3.7873,2640.4,2640.3,2.7317774]
[1739164644368,3.7873,2640.4,2640.3,2.77359365]
[1739164644776,0.93722045,2641.1,2640.3,3.60019365]
[1739164644937,0.75762115,2640.8,2640.7,2.7317774]
[1739164645324,0.75762115,2640.8,2640.7,2.77337787]
[1739164647468,0.75762115,2640.8,2640.7,3.59997787]
[1739164648054,0.75762115,2640.8,2640.7,2.77337787]
[1739164648371,4.54435115,2640.8,2640.7,2.77337787]
[1739164648671,4.54435115,2640.8,2640.7,2.7317774]
[1739164649026,4.54435115,2640.8,2640.7,2.77220422]
[1739164649230,4.54435115,2640.8,2640.7,0.04042682]
[1739164649629,3.78745,2640.3,2640.1,2.7317774]
[1739164649830,3.78759,2640.2,2640.1,2.7317774]
[1739164650070,3.78745,2640.3,2640.2,0.04042682]
[1739164650274,3.78759,2640.2,2640.1,2.7317774]
[1739164650479,4.5388,2640.4,2640.1,2.7317774]
[1739164650773,3.78715,2640.6,2640.1,2.77231637]
[1739164650945,3.78724,2640.5,2640.1,2.77231637]
[1739164651150,3.78759,2640.2,2640.1,2.77231637]
[1739164652155,3.78759,2640.2,2640.1,2.7317774]
[1739164652349,3.78793,2640.0,2639.8,3.5583774]
[1739164652691,3.78793,2640.0,2639.9,0.04091866]
[1739164653573,3.78802,2639.9,2639.8,2.7317774]
[1739164653746,3.78845,2639.6,2639.5,2.7317774]
[1739164654172,3.78845,2639.6,2639.5,2.77277374]
[1739164654644,3.7883,2639.7,2639.5,2.77277374]
[1739164654849,3.78845,2639.6,2639.5,2.77277374]
[1739164655201,3.78803,2639.9,2639.5,2.77277374]
[1739164655402,3.78803,2639.9,2639.8,2.7317774]
[1739164656295,3.78845,2639.6,2639.5,2.7317774]
[1739164656645,3.78888,2639.3,2639.2,2.7317774]
[1739164657195,3.78931,2639.0,2638.9,2.7317774]
[1739164657566,3.78931,2639.0,2638.9,2.77302407]
[1739164657771,3.7892,2639.1,2638.9,2.77302407]
[1739164658070,3.78889,2639.3,2638.9,2.77302407]
[1739164658267,3.78889,2639.3,2639.2,2.7317774]
[1739164659499,3.78931,2639.0,2638.9,2.7317774]
[1739164660503,4.60006,2639.4,2638.9,2.7317774]
[1739164660504,3.789,2639.3,2638.9,2.7317774]
[1739164660804,3.78904,2639.2,2638.6,0.8155]
[1739164661003,3.78904,2639.2,2638.2,0.73411075]
[1739164661004,3.78847,2639.6,2639.1,0.8155]
[1739164661169,0.7608279,2639.5,2639.1,0.8155]
[1739164661364,0.7608279,2639.5,2639.2,0.042956]
[1739164661685,3.78823,2639.8,2639.2,0.042956]
[1739164662000,3.78823,2639.8,2639.1,0.8155]
[1739164662159,3.78823,2639.8,2639.7,2.7317774]
[1739164663776,3.78866,2639.5,2639.4,2.7317774]
[1739164665164,3.78823,2639.8,2639.4,3.5472774]
[1739164665366,6.7879,2640.0,2639.7,2.7317774]
[1739164665588,6.7879,2640.0,2639.8,0.04280918]
[1739164665761,6.7879,2640.0,2639.7,2.7317774]
[1739164666090,3.78813,2639.9,2639.8,0.04280055]
[1739164666283,3.7879,2640.0,2639.8,0.04280055]
[1739164666590,7.59864,2640.4,2639.7,2.7317774]
[1739164666591,7.57615,2639.9,2639.7,2.7317774]
[1739164666904,3.78802,2639.9,2639.8,0.04280055]
[1739164667308,3.78802,2639.9,2639.7,2.7317774]
[1739164667662,3.78802,2639.9,2639.8,0.04280055]
[1739164668156,3.78816,2639.8,2639.7,2.7317774]
[1739164670309,6.78816,2639.8,2639.1,2.7317774]
[1739164670515,3.7891,2639.2,2638.8,2.7317774]
[1739164670691,3.78938,2639.0,2638.8,2.7317774]
[1739164670892,3.7891,2639.2,2638.8,2.7317774]
[1739164671097,3.78888,2639.3,2639.1,2.7317774]
[1739164671304,3.7887,2639.5,2639.1,2.7317774]
[1739164671529,6.78834,2639.7,2639.4,2.7317774]
[1739164671825,3.78859,2639.5,2639.4,2.7317774]
[1739164672177,3.78834,2639.7,2639.4,2.7317774]
[1739164672380,3.78859,2639.5,2639.4,2.7317774]
[1739164673454,3.78834,2639.7,2639.4,2.7317774]
[1739164673580,3.78834,2639.7,2639.6,2.01720144]
[1739164675920,3.78883,2639.4,2639.3,2.01720144]
[1739164676328,3.78883,2639.4,2639.3,2.05766492]
[1739164676826,3.78883,2639.4,2639.3,2.01720144]
[1739164677021,3.7886,2639.5,2639.3,2.01720144]
[1739164677248,3.7886,2639.5,2639.3,2.05766492]
[1739164677448,8.3176923,2639.5,2639.3,0.04046348]
[1739164677649,4.5289923,2639.5,2639.3,0.04046348]
[1739164677821,4.5289923,2639.5,2639.2,2.01720144]
[1739164678149,3.78888,2639.3,2639.2,2.01720144]
[1739164679554,3.78888,2639.3,2638.9,0.7538]
[1739164679555,3.78931,2639.0,2638.9,2.01720144]
[1739164680354,3.78931,2639.0,2638.9,2.05766492]
[1739164681149,3.78931,2639.0,2638.9,2.01720144]
[1739164681729,3.78931,2639.0,2638.9,2.05846749]
[1739164682813,3.78931,2639.0,2638.9,2.01720144]
[1739164683016,3.78974,2638.7,2638.6,2.01720144]
[1739164683465,3.78974,2638.7,2638.6,2.05846749]
[1739164684560,3.78974,2638.7,2638.6,0.04126605]
[1739164685070,3.79001,2638.6,2638.4,2.01720144]
[1739164685281,0.7919,2638.9,2638.4,2.01720144]
[1739164685431,0.7919,2638.9,2638.7,2.01720144]
[1739164685432,3.78969,2638.8,2638.7,2.01720144]
[1739164689570,3.78969,2638.8,2638.7,2.85020144]
[1739164689775,3.78969,2638.8,2638.7,2.01720144]
[1739164692283,3.7892,2639.1,2638.7,2.01720144]
[1739164692489,3.7892,2639.1,2639.0,2.01720144]
[1739164693885,3.7896,2638.8,2638.7,2.01720144]
[1739164695451,3.79003,2638.5,2638.4,2.01720144]